[Event "Titled Tuesday Blitz April 26 Late 2022"]
[White "Zanette, Edgard Vinicius"]
[Black "Maltsevskaya, Aleksandra"]
[WhiteFideId "2109263"]
[BlackFideId "24174041"]
[WhiteElo "2182"]
[BlackElo "2235"]
[Result "0-1"]
[Round "01"]
[TimeControl "180+1"]
[Date "2022.04.26"]
[WhiteClock "0:01:04"]
[BlackClock "0:01:46"]

1. e4 {[%clk 0:02:57]}  c5 {[%clk 0:02:57]} 2. Nc3 {[%clk 0:02:57]}  Nc6 {[%clk 0:02:58]} 3. g3 {[%clk 0:02:56]}  e6 {[%clk 0:02:58]} 4. Bg2 {[%clk 0:02:56]}  h5 {[%clk 0:02:58]} 5. h4 {[%clk 0:02:55]}  Nf6 {[%clk 0:02:58]} 6. d3 {[%clk 0:02:55]}  d5 {[%clk 0:02:56]} 7. Bg5 {[%clk 0:02:51]}  Be7 {[%clk 0:02:38]} 8. Nh3 {[%clk 0:02:45]}  Qb6 {[%clk 0:02:25]} 9. Rb1 {[%clk 0:02:40]}  d4 {[%clk 0:02:21]} 10. Ne2 {[%clk 0:02:40]}  Qa5+ {[%clk 0:02:19]} 11. Qd2 {[%clk 0:02:34]}  Qxa2 {[%clk 0:02:17]} 12. O-O {[%clk 0:02:33]}  Qa6 {[%clk 0:02:15]} 13. f3 {[%clk 0:02:17]}  Qb6 {[%clk 0:02:13]} 14. Kh1 {[%clk 0:02:12]}  a5 {[%clk 0:02:12]} 15. Nf2 {[%clk 0:02:06]}  a4 {[%clk 0:02:12]} 16. f4 {[%clk 0:02:01]}  Ng4 {[%clk 0:02:10]} 17. Nxg4 {[%clk 0:01:55]}  hxg4 {[%clk 0:02:11]} 18. Bxe7 {[%clk 0:01:55]}  Nxe7 {[%clk 0:02:12]} 19. c3 {[%clk 0:01:50]}  dxc3 {[%clk 0:02:10]} 20. Qxc3 {[%clk 0:01:49]}  f6 {[%clk 0:02:08]} 21. Rfc1 {[%clk 0:01:47]}  Qb5 {[%clk 0:01:59]} 22. d4 {[%clk 0:01:43]}  Qxe2 {[%clk 0:01:58]} 23. Qxc5 {[%clk 0:01:37]}  Qf2 {[%clk 0:01:52]} 24. Qb5+ {[%clk 0:01:32]}  Bd7 {[%clk 0:01:52]} 25. Qxb7 {[%clk 0:01:32]}  Rd8 {[%clk 0:01:51]} 26. Rc3 {[%clk 0:01:27]}  Ng6 {[%clk 0:01:48]} 27. Rf1 {[%clk 0:01:17]}  Qxd4 {[%clk 0:01:47]} 28. f5 {[%clk 0:01:04]}  Nxh4 {[%clk 0:01:46]} 0-1


[Site "https://www.chess.com"]

[Event "Titled Tuesday Blitz April 26 Late 2022"]
[White "Akrakan"]
[Black "Wachinger, Guenther"]
[BlackFideId "4604261"]
[WhiteElo "2105"]
[BlackElo "2212"]
[Result "0-1"]
[Round "02"]
[TimeControl "180+1"]
[Date "2022.04.26"]
[WhiteClock "0:01:06"]
[BlackClock "0:01:34"]

1. e4 {[%clk 0:03:00]}  c5 {[%clk 0:02:50]} 2. Nf3 {[%clk 0:03:00]}  d6 {[%clk 0:02:50]} 3. c3 {[%clk 0:03:01]}  Nf6 {[%clk 0:02:50]} 4. Qc2 {[%clk 0:03:01]}  Nc6 {[%clk 0:02:47]} 5. d4 {[%clk 0:03:01]}  cxd4 {[%clk 0:02:48]} 6. cxd4 {[%clk 0:03:02]}  e6 {[%clk 0:02:45]} 7. Nc3 {[%clk 0:03:01]}  Be7 {[%clk 0:02:45]} 8. Be2 {[%clk 0:03:00]}  O-O {[%clk 0:02:45]} 9. O-O {[%clk 0:03:00]}  a6 {[%clk 0:02:46]} 10. a3 {[%clk 0:03:00]}  d5 {[%clk 0:02:42]} 11. e5 {[%clk 0:03:00]}  Nd7 {[%clk 0:02:42]} 12. b4 {[%clk 0:02:51]}  a5 {[%clk 0:02:36]} 13. b5 {[%clk 0:02:50]}  Na7 {[%clk 0:02:36]} 14. a4 {[%clk 0:02:50]}  Nb6 {[%clk 0:02:36]} 15. Nd2 {[%clk 0:02:45]}  Bb4 {[%clk 0:02:35]} 16. Ba3 {[%clk 0:02:37]}  Bxa3 {[%clk 0:02:31]} 17. Rxa3 {[%clk 0:02:36]}  Bd7 {[%clk 0:02:30]} 18. Bd3 {[%clk 0:02:20]}  h6 {[%clk 0:02:30]} 19. Qd1 {[%clk 0:02:16]}  Rc8 {[%clk 0:02:07]} 20. Qg4 {[%clk 0:02:08]}  Qe7 {[%clk 0:02:03]} 21. Ndb1 {[%clk 0:02:01]}  Nc4 {[%clk 0:01:57]} 22. Ra2 {[%clk 0:01:55]}  Qb4 {[%clk 0:01:48]} 23. Rc2 {[%clk 0:01:45]}  Na3 {[%clk 0:01:34]} 24. Nxa3 {[%clk 0:01:18]}  Rxc3 {[%clk 0:01:34]} 25. Rxc3 {[%clk 0:01:18]}  Qxc3 {[%clk 0:01:34]} 26. Qf3 {[%clk 0:01:15]}  Qxd4 {[%clk 0:01:35]} 27. Re1 {[%clk 0:01:10]}  Qxa4 {[%clk 0:01:34]} 28. Bc2 {[%clk 0:01:07]}  Qb4 {[%clk 0:01:33]} 29. Qd3 {[%clk 0:01:07]}  Qxe1+ {[%clk 0:01:33]} 30. Qf1 {[%clk 0:01:06]}  Qxf1+ {[%clk 0:01:34]} 31. Kxf1 {[%clk 0:01:06]} 0-1


[Site "https://www.chess.com"]

[Event "Titled Tuesday Blitz April 26 Late 2022"]
[White "Ansh M Shah"]
[Black "Skliarov, Viktor"]
[WhiteFideId "25033379"]
[BlackFideId "14106736"]
[WhiteElo "1819"]
[BlackElo "2229"]
[Result "1-0"]
[Round "02"]
[TimeControl "180+1"]
[Date "2022.04.26"]
[WhiteClock "0:00:42"]
[BlackClock "0:00:41"]

1. d4 {[%clk 0:03:00]}  Nf6 {[%clk 0:02:59]} 2. c4 {[%clk 0:03:01]}  e6 {[%clk 0:03:00]} 3. Nf3 {[%clk 0:03:00]}  b6 {[%clk 0:02:59]} 4. g3 {[%clk 0:03:01]}  Bb7 {[%clk 0:02:59]} 5. Bg2 {[%clk 0:03:02]}  Be7 {[%clk 0:03:00]} 6. O-O {[%clk 0:03:02]}  O-O {[%clk 0:03:00]} 7. Nbd2 {[%clk 0:03:02]}  c5 {[%clk 0:02:58]} 8. b3 {[%clk 0:02:59]}  cxd4 {[%clk 0:02:58]} 9. Nxd4 {[%clk 0:03:00]}  Bxg2 {[%clk 0:02:58]} 10. Kxg2 {[%clk 0:03:01]}  d5 {[%clk 0:02:57]} 11. Bb2 {[%clk 0:03:01]}  e5 {[%clk 0:02:51]} 12. Nf5 {[%clk 0:02:59]}  d4 {[%clk 0:02:50]} 13. e3 {[%clk 0:02:45]}  Bc5 {[%clk 0:02:39]} 14. exd4 {[%clk 0:02:38]}  exd4 {[%clk 0:02:32]} 15. Nf3 {[%clk 0:02:38]}  d3 {[%clk 0:02:27]} 16. Qd2 {[%clk 0:02:15]}  h6 {[%clk 0:01:43]} 17. Rad1 {[%clk 0:01:31]}  Nc6 {[%clk 0:01:27]} 18. Nxh6+ {[%clk 0:01:00]}  gxh6 {[%clk 0:01:25]} 19. Qxh6 {[%clk 0:01:01]}  Nd4 {[%clk 0:00:41]} 20. Rxd3 {[%clk 0:00:46]}  Nf5 {[%clk 0:00:41]} 21. Qg5+ {[%clk 0:00:42]} 1-0


[Site "https://www.chess.com"]

[Event "Titled Tuesday Blitz April 26 Late 2022"]
[White "Araujo Sanchez, Josue"]
[Black "Bas Mas, Jose Joaquin"]
[WhiteFideId "6416896"]
[BlackFideId "22219064"]
[WhiteElo "2339"]
[BlackElo "2212"]
[Result "1-0"]
[Round "02"]
[TimeControl "180+1"]
[Date "2022.04.26"]
[WhiteClock "0:01:26"]
[BlackClock "0:00:04"]

1. e4 {[%clk 0:03:00]}  c5 {[%clk 0:02:59]} 2. Nf3 {[%clk 0:03:01]}  e6 {[%clk 0:03:00]} 3. d4 {[%clk 0:03:00]}  cxd4 {[%clk 0:03:01]} 4. Nxd4 {[%clk 0:03:00]}  a6 {[%clk 0:03:02]} 5. Nc3 {[%clk 0:03:01]}  Bb4 {[%clk 0:03:01]} 6. Qd3 {[%clk 0:02:57]}  Nc6 {[%clk 0:02:57]} 7. Nxc6 {[%clk 0:02:57]}  bxc6 {[%clk 0:02:55]} 8. Bd2 {[%clk 0:02:54]}  Nf6 {[%clk 0:02:50]} 9. O-O-O {[%clk 0:02:53]}  d5 {[%clk 0:02:47]} 10. Kb1 {[%clk 0:02:52]}  Bxc3 {[%clk 0:02:38]} 11. Bxc3 {[%clk 0:02:50]}  O-O {[%clk 0:02:35]} 12. Qg3 {[%clk 0:02:47]}  Bd7 {[%clk 0:02:29]} 13. Be2 {[%clk 0:02:45]}  Qb8 {[%clk 0:02:06]} 14. Be5 {[%clk 0:02:39]}  Qd8 {[%clk 0:02:04]} 15. h4 {[%clk 0:02:37]}  Ne8 {[%clk 0:01:53]} 16. f4 {[%clk 0:02:33]}  f6 {[%clk 0:01:49]} 17. Bc3 {[%clk 0:02:32]}  Qe7 {[%clk 0:01:37]} 18. Bd3 {[%clk 0:02:23]}  Kh8 {[%clk 0:01:28]} 19. h5 {[%clk 0:02:18]}  c5 {[%clk 0:01:26]} 20. h6 {[%clk 0:02:13]}  d4 {[%clk 0:01:24]} 21. e5 {[%clk 0:02:05]}  f5 {[%clk 0:01:14]} 22. Ba5 {[%clk 0:01:59]}  g6 {[%clk 0:01:11]} 23. c3 {[%clk 0:01:57]}  Bc6 {[%clk 0:01:08]} 24. cxd4 {[%clk 0:01:54]}  cxd4 {[%clk 0:01:08]} 25. Bc2 {[%clk 0:01:54]}  Qc5 {[%clk 0:01:05]} 26. Be1 {[%clk 0:01:44]}  Nc7 {[%clk 0:01:04]} 27. Bf2 {[%clk 0:01:41]}  Nb5 {[%clk 0:00:53]} 28. Rc1 {[%clk 0:01:40]}  Rab8 {[%clk 0:00:48]} 29. Bb3 {[%clk 0:01:39]}  Qb6 {[%clk 0:00:31]} 30. Ka1 {[%clk 0:01:35]}  Be4 {[%clk 0:00:29]} 31. Rc4 {[%clk 0:01:30]}  Rfd8 {[%clk 0:00:22]} 32. Rhc1 {[%clk 0:01:29]}  Bd5 {[%clk 0:00:22]} 33. Qh4 {[%clk 0:01:28]}  Rf8 {[%clk 0:00:18]} 34. Qe7 {[%clk 0:01:27]}  Qb7 {[%clk 0:00:10]} 35. Rc7 {[%clk 0:01:26]}  Rg8 {[%clk 0:00:04]} 1-0


[Site "https://www.chess.com"]

[Event "Titled Tuesday Blitz April 26 Late 2022"]
[White "Aung Thant Zin"]
[Black "BM223344"]
[WhiteFideId "13000063"]
[WhiteElo "2278"]
[BlackElo "2455"]
[Result "1-0"]
[Round "02"]
[TimeControl "180+1"]
[Date "2022.04.26"]
[WhiteClock "0:02:01"]
[BlackClock "0:02:28"]

1. e4 {[%clk 0:02:44]}  e6 {[%clk 0:02:59]} 2. d4 {[%clk 0:02:43]}  d5 {[%clk 0:02:59]} 3. Nc3 {[%clk 0:02:43]}  Nf6 {[%clk 0:02:58]} 4. Bg5 {[%clk 0:02:41]}  Be7 {[%clk 0:02:58]} 5. Bxf6 {[%clk 0:02:41]}  Bxf6 {[%clk 0:02:58]} 6. Nf3 {[%clk 0:02:41]}  O-O {[%clk 0:02:55]} 7. e5 {[%clk 0:02:42]}  Be7 {[%clk 0:02:55]} 8. h4 {[%clk 0:02:42]}  f5 {[%clk 0:02:55]} 9. exf6 {[%clk 0:02:41]}  Bxf6 {[%clk 0:02:55]} 10. Bd3 {[%clk 0:02:41]}  Qe7 {[%clk 0:02:46]} 11. Bxh7+ {[%clk 0:02:40]}  Kxh7 {[%clk 0:02:46]} 12. Ng5+ {[%clk 0:02:40]}  Kg8 {[%clk 0:02:34]} 13. Qh5 {[%clk 0:02:35]}  Bxg5 {[%clk 0:02:33]} 14. hxg5 {[%clk 0:02:34]}  g6 {[%clk 0:02:34]} 15. Qh8+ {[%clk 0:02:31]}  Kf7 {[%clk 0:02:34]} 16. Rh7+ {[%clk 0:02:31]}  Ke8 {[%clk 0:02:35]} 17. Rxe7+ {[%clk 0:02:30]}  Kxe7 {[%clk 0:02:35]} 18. Qg7+ {[%clk 0:02:30]}  Rf7 {[%clk 0:02:36]} 19. Qxg6 {[%clk 0:02:29]}  Nc6 {[%clk 0:02:36]} 20. O-O-O {[%clk 0:02:28]}  Bd7 {[%clk 0:02:35]} 21. Nxd5+ {[%clk 0:02:10]}  exd5 {[%clk 0:02:33]} 22. Re1+ {[%clk 0:02:10]}  Kf8 {[%clk 0:02:33]} 23. Qh6+ {[%clk 0:02:08]}  Kg8 {[%clk 0:02:32]} 24. g6 {[%clk 0:02:02]}  Rg7 {[%clk 0:02:29]} 25. Rh1 {[%clk 0:02:01]}  Kf8 {[%clk 0:02:28]} 26. Qh8+ {[%clk 0:02:01]}  Rg8 {[%clk 0:02:28]} 27. Qf6+ {[%clk 0:02:01]}  Ke8 {[%clk 0:02:28]} 28. Qf7+ {[%clk 0:02:01]}  Kd8 {[%clk 0:02:27]} 29. Qxg8+ {[%clk 0:02:01]}  Ke7 {[%clk 0:02:28]} 1-0


[Site "https://www.chess.com"]

[Event "Titled Tuesday Blitz April 26 Late 2022"]
[White "Baches Garcia, Guillermo"]
[Black "Dudzinski, Pawel"]
[WhiteFideId "2209764"]
[BlackFideId "1117890"]
[WhiteElo "2527"]
[BlackElo "2033"]
[Result "1-0"]
[Round "02"]
[TimeControl "180+1"]
[Date "2022.04.26"]
[WhiteClock "0:00:17"]
[BlackClock "0:00:02"]

1. e4 {[%clk 0:03:00]}  c6 {[%clk 0:02:54]} 2. c4 {[%clk 0:03:00]}  d5 {[%clk 0:02:55]} 3. exd5 {[%clk 0:03:01]}  cxd5 {[%clk 0:02:55]} 4. cxd5 {[%clk 0:03:01]}  Nf6 {[%clk 0:02:55]} 5. Nc3 {[%clk 0:03:02]}  Nxd5 {[%clk 0:02:55]} 6. Nf3 {[%clk 0:03:03]}  e6 {[%clk 0:02:55]} 7. d4 {[%clk 0:02:59]}  Nc6 {[%clk 0:02:53]} 8. Bb5 {[%clk 0:02:58]}  Be7 {[%clk 0:02:44]} 9. O-O {[%clk 0:02:58]}  O-O {[%clk 0:02:43]} 10. Re1 {[%clk 0:02:58]}  Bf6 {[%clk 0:02:06]} 11. a3 {[%clk 0:02:49]}  Nxc3 {[%clk 0:02:02]} 12. bxc3 {[%clk 0:02:48]}  Qa5 {[%clk 0:01:59]} 13. Qd3 {[%clk 0:02:33]}  Bd7 {[%clk 0:01:33]} 14. a4 {[%clk 0:02:23]}  Rfd8 {[%clk 0:01:21]} 15. Bd2 {[%clk 0:02:17]}  a6 {[%clk 0:01:11]} 16. Bc4 {[%clk 0:02:10]}  Qc7 {[%clk 0:00:57]} 17. Bb3 {[%clk 0:01:51]}  Na5 {[%clk 0:00:51]} 18. Bc2 {[%clk 0:01:51]}  g6 {[%clk 0:00:51]} 19. h4 {[%clk 0:01:48]}  Nc4 {[%clk 0:00:51]} 20. Bg5 {[%clk 0:01:36]}  Bxg5 {[%clk 0:00:51]} 21. Nxg5 {[%clk 0:01:36]}  Rac8 {[%clk 0:00:47]} 22. h5 {[%clk 0:01:21]}  Nb2 {[%clk 0:00:46]} 23. Qh3 {[%clk 0:01:21]}  e5 {[%clk 0:00:45]} 24. Qh4 {[%clk 0:01:18]}  Bf5 {[%clk 0:00:11]} 25. Bxf5 {[%clk 0:00:50]}  gxf5 {[%clk 0:00:12]} 26. Rxe5 {[%clk 0:00:50]}  h6 {[%clk 0:00:13]} 27. Nf3 {[%clk 0:00:36]}  Qxc3 {[%clk 0:00:13]} 28. Rxf5 {[%clk 0:00:30]}  Rd6 {[%clk 0:00:11]} 29. Qg4+ {[%clk 0:00:28]}  Kf8 {[%clk 0:00:10]} 30. Re1 {[%clk 0:00:24]}  Re8 {[%clk 0:00:09]} 31. Rxe8+ {[%clk 0:00:22]}  Kxe8 {[%clk 0:00:10]} 32. Qg8+ {[%clk 0:00:22]}  Kd7 {[%clk 0:00:09]} 33. Rxf7+ {[%clk 0:00:22]}  Ke6 {[%clk 0:00:05]} 34. Rc7+ {[%clk 0:00:18]}  Kf5 {[%clk 0:00:02]} 35. Rxc3 {[%clk 0:00:17]} 1-0


[Site "https://www.chess.com"]

[Event "Titled Tuesday Blitz April 26 Late 2022"]
[White "Bachmann, Axel"]
[Black "Kanyamarala, Tarun"]
[WhiteFideId "3700488"]
[BlackFideId "45004714"]
[WhiteElo "2587"]
[BlackElo "2177"]
[Result "1-0"]
[Round "02"]
[TimeControl "180+1"]
[Date "2022.04.26"]
[WhiteClock "0:00:21"]
[BlackClock "0:00:05"]

1. d4 {[%clk 0:03:00]}  f5 {[%clk 0:02:50]} 2. Nf3 {[%clk 0:03:00]}  Nf6 {[%clk 0:02:50]} 3. g3 {[%clk 0:03:00]}  g6 {[%clk 0:02:50]} 4. Bg2 {[%clk 0:03:00]}  Bg7 {[%clk 0:02:51]} 5. b3 {[%clk 0:02:59]}  d6 {[%clk 0:02:47]} 6. Bb2 {[%clk 0:02:58]}  O-O {[%clk 0:02:46]} 7. O-O {[%clk 0:02:58]}  Nc6 {[%clk 0:02:44]} 8. c4 {[%clk 0:02:54]}  Ne4 {[%clk 0:02:41]} 9. Nc3 {[%clk 0:02:51]}  Nxc3 {[%clk 0:02:39]} 10. Bxc3 {[%clk 0:02:51]}  e5 {[%clk 0:02:40]} 11. dxe5 {[%clk 0:02:37]}  dxe5 {[%clk 0:02:40]} 12. Qc2 {[%clk 0:02:30]}  e4 {[%clk 0:02:31]} 13. Ne1 {[%clk 0:02:09]}  Nd4 {[%clk 0:02:23]} 14. Bxd4 {[%clk 0:01:57]}  Bxd4 {[%clk 0:01:55]} 15. Rd1 {[%clk 0:01:57]}  Qf6 {[%clk 0:01:55]} 16. e3 {[%clk 0:01:49]}  Bc5 {[%clk 0:01:44]} 17. Qd2 {[%clk 0:01:43]}  Be6 {[%clk 0:01:34]} 18. Nc2 {[%clk 0:01:43]}  Rfd8 {[%clk 0:01:24]} 19. Qe2 {[%clk 0:01:43]}  Qc3 {[%clk 0:01:12]} 20. Rxd8+ {[%clk 0:01:14]}  Rxd8 {[%clk 0:01:11]} 21. Rd1 {[%clk 0:01:15]}  Rxd1+ {[%clk 0:00:28]} 22. Qxd1 {[%clk 0:01:16]}  Qd3 {[%clk 0:00:28]} 23. Qxd3 {[%clk 0:01:03]}  exd3 {[%clk 0:00:27]} 24. Nd4 {[%clk 0:01:03]}  Bd7 {[%clk 0:00:07]} 25. Bf3 {[%clk 0:00:57]}  Bb4 {[%clk 0:00:03]} 26. Kf1 {[%clk 0:00:54]}  c6 {[%clk 0:00:03]} 27. h4 {[%clk 0:00:32]}  Kf7 {[%clk 0:00:02]} 28. Bd1 {[%clk 0:00:31]}  Kf6 {[%clk 0:00:02]} 29. Nf3 {[%clk 0:00:31]}  Bc3 {[%clk 0:00:02]} 30. Ne1 {[%clk 0:00:29]}  d2 {[%clk 0:00:03]} 31. Nf3 {[%clk 0:00:28]}  b5 {[%clk 0:00:03]} 32. Ke2 {[%clk 0:00:27]}  bxc4 {[%clk 0:00:04]} 33. bxc4 {[%clk 0:00:27]}  Be6 {[%clk 0:00:04]} 34. Bb3 {[%clk 0:00:24]}  Ba5 {[%clk 0:00:04]} 35. Nxd2 {[%clk 0:00:24]}  Ke7 {[%clk 0:00:05]} 36. Nf3 {[%clk 0:00:22]}  Bg8 {[%clk 0:00:04]} 37. Nd4 {[%clk 0:00:21]}  Kd6 {[%clk 0:00:05]} 38. c5+ {[%clk 0:00:20]}  Kxc5 {[%clk 0:00:05]} 39. Bxg8 {[%clk 0:00:21]} 1-0


[Site "https://www.chess.com"]

[Event "Titled Tuesday Blitz April 26 Late 2022"]
[White "Bluebaum, Matthias"]
[Black "Yurovskykh, Oleksandr"]
[WhiteFideId "24651516"]
[BlackFideId "14134020"]
[WhiteElo "2550"]
[BlackElo "2292"]
[Result "1-0"]
[Round "02"]
[TimeControl "180+1"]
[Date "2022.04.26"]
[WhiteClock "0:00:33"]
[BlackClock "0:00:10"]

1. d4 {[%clk 0:03:00]}  d5 {[%clk 0:02:56]} 2. c4 {[%clk 0:03:01]}  dxc4 {[%clk 0:02:54]} 3. e4 {[%clk 0:03:01]}  Nf6 {[%clk 0:02:54]} 4. e5 {[%clk 0:03:01]}  Nd5 {[%clk 0:02:54]} 5. Bxc4 {[%clk 0:03:01]}  Nb6 {[%clk 0:02:51]} 6. Bd3 {[%clk 0:03:02]}  Nc6 {[%clk 0:02:51]} 7. Be3 {[%clk 0:03:02]}  Nb4 {[%clk 0:02:49]} 8. Be4 {[%clk 0:03:02]}  f5 {[%clk 0:02:46]} 9. a3 {[%clk 0:03:03]}  N4d5 {[%clk 0:02:41]} 10. Bxd5 {[%clk 0:03:01]}  Nxd5 {[%clk 0:02:36]} 11. Nc3 {[%clk 0:03:01]}  c6 {[%clk 0:02:20]} 12. h4 {[%clk 0:02:51]}  Be6 {[%clk 0:02:17]} 13. Nf3 {[%clk 0:02:44]}  Qd7 {[%clk 0:02:15]} 14. Ng5 {[%clk 0:02:22]}  O-O-O {[%clk 0:02:09]} 15. Rc1 {[%clk 0:02:11]}  Kb8 {[%clk 0:02:08]} 16. Na4 {[%clk 0:02:09]}  b6 {[%clk 0:02:00]} 17. Nxe6 {[%clk 0:01:57]}  Qxe6 {[%clk 0:02:00]} 18. Qb3 {[%clk 0:01:53]}  Qc8 {[%clk 0:01:43]} 19. O-O {[%clk 0:01:48]}  e6 {[%clk 0:01:39]} 20. Rc2 {[%clk 0:01:48]}  Qb7 {[%clk 0:01:31]} 21. Rfc1 {[%clk 0:01:47]}  Rc8 {[%clk 0:01:32]} 22. Nc3 {[%clk 0:01:46]}  Be7 {[%clk 0:01:29]} 23. Bg5 {[%clk 0:01:42]}  Bxg5 {[%clk 0:01:25]} 24. hxg5 {[%clk 0:01:43]}  Qe7 {[%clk 0:01:23]} 25. Qa4 {[%clk 0:01:36]}  Qxg5 {[%clk 0:01:15]} 26. Ne2 {[%clk 0:01:04]}  Nf4 {[%clk 0:00:59]} 27. Nxf4 {[%clk 0:01:03]}  Qxf4 {[%clk 0:01:00]} 28. g3 {[%clk 0:01:00]}  Qg5 {[%clk 0:00:57]} 29. Kg2 {[%clk 0:00:49]}  Rc7 {[%clk 0:00:48]} 30. Rxc6 {[%clk 0:00:48]}  Qxc1 {[%clk 0:00:44]} 31. Rxc1 {[%clk 0:00:49]}  Rxc1 {[%clk 0:00:44]} 32. Qd7 {[%clk 0:00:49]}  Rd1 {[%clk 0:00:33]} 33. Qd6+ {[%clk 0:00:41]}  Ka8 {[%clk 0:00:27]} 34. Qxe6 {[%clk 0:00:40]}  Rd8 {[%clk 0:00:24]} 35. Qxf5 {[%clk 0:00:39]}  R1xd4 {[%clk 0:00:19]} 36. Qxh7 {[%clk 0:00:39]}  R4d7 {[%clk 0:00:20]} 37. f4 {[%clk 0:00:38]}  Rd2+ {[%clk 0:00:20]} 38. Kh3 {[%clk 0:00:36]}  R2d7 {[%clk 0:00:13]} 39. e6 {[%clk 0:00:33]}  Re7 {[%clk 0:00:13]} 40. Qe4+ {[%clk 0:00:33]}  Kb8 {[%clk 0:00:13]} 41. f5 {[%clk 0:00:34]}  Rh8+ {[%clk 0:00:11]} 42. Kg2 {[%clk 0:00:35]}  Rhe8 {[%clk 0:00:12]} 43. g4 {[%clk 0:00:35]}  g6 {[%clk 0:00:12]} 44. Kf3 {[%clk 0:00:35]}  gxf5 {[%clk 0:00:12]} 45. gxf5 {[%clk 0:00:35]}  Kc7 {[%clk 0:00:12]} 46. Qe5+ {[%clk 0:00:36]}  Kc6 {[%clk 0:00:13]} 47. Ke4 {[%clk 0:00:35]}  a6 {[%clk 0:00:12]} 48. Qd5+ {[%clk 0:00:35]}  Kc7 {[%clk 0:00:12]} 49. Ke5 {[%clk 0:00:36]}  Rh7 {[%clk 0:00:09]} 50. Qd6+ {[%clk 0:00:33]}  Kc8 {[%clk 0:00:08]} 51. Qc6+ {[%clk 0:00:32]}  Kd8 {[%clk 0:00:09]} 52. Qxb6+ {[%clk 0:00:33]}  Ke7 {[%clk 0:00:09]} 53. Qc7+ {[%clk 0:00:32]}  Kf8 {[%clk 0:00:10]} 54. Qxh7 {[%clk 0:00:33]} 1-0


[Site "https://www.chess.com"]

[Event "Titled Tuesday Blitz April 26 Late 2022"]
[White "Bortnyk, Olexandr"]
[Black "Salimova, Nurgyul"]
[WhiteFideId "14120828"]
[BlackFideId "2915138"]
[WhiteElo "2723"]
[BlackElo "2185"]
[Result "1-0"]
[Round "02"]
[TimeControl "180+1"]
[Date "2022.04.26"]
[WhiteClock "0:00:28"]
[BlackClock "0:00:03"]

1. d4 {[%clk 0:02:59]}  d5 {[%clk 0:02:59]} 2. Nc3 {[%clk 0:02:58]}  Nf6 {[%clk 0:02:57]} 3. Bf4 {[%clk 0:02:57]}  Bf5 {[%clk 0:02:53]} 4. e3 {[%clk 0:02:57]}  e6 {[%clk 0:02:47]} 5. Nf3 {[%clk 0:02:56]}  Be7 {[%clk 0:02:40]} 6. Ne5 {[%clk 0:02:56]}  Nbd7 {[%clk 0:02:25]} 7. g4 {[%clk 0:02:56]}  Bg6 {[%clk 0:02:23]} 8. h4 {[%clk 0:02:56]}  Be4 {[%clk 0:01:52]} 9. f3 {[%clk 0:02:56]}  Nxe5 {[%clk 0:01:48]} 10. dxe5 {[%clk 0:02:55]}  Nxg4 {[%clk 0:01:48]} 11. Nxe4 {[%clk 0:02:42]}  Bxh4+ {[%clk 0:01:46]} 12. Ke2 {[%clk 0:02:40]}  Qe7 {[%clk 0:01:19]} 13. fxg4 {[%clk 0:02:29]}  dxe4 {[%clk 0:01:18]} 14. Qd4 {[%clk 0:02:30]}  Rd8 {[%clk 0:01:11]} 15. Qxe4 {[%clk 0:02:28]}  Rd5 {[%clk 0:01:07]} 16. c4 {[%clk 0:02:23]}  Rd7 {[%clk 0:00:54]} 17. Bg2 {[%clk 0:02:17]}  Qb4 {[%clk 0:00:51]} 18. Qc2 {[%clk 0:02:01]}  g5 {[%clk 0:00:50]} 19. a3 {[%clk 0:01:49]}  Qb6 {[%clk 0:00:46]} 20. Bh2 {[%clk 0:01:46]}  O-O {[%clk 0:00:41]} 21. Rad1 {[%clk 0:01:44]}  Rfd8 {[%clk 0:00:39]} 22. b4 {[%clk 0:01:43]}  a5 {[%clk 0:00:34]} 23. Rxd7 {[%clk 0:01:35]}  Rxd7 {[%clk 0:00:35]} 24. Rd1 {[%clk 0:01:35]}  Rxd1 {[%clk 0:00:35]} 25. Qxd1 {[%clk 0:01:35]}  axb4 {[%clk 0:00:36]} 26. axb4 {[%clk 0:01:26]}  Qxb4 {[%clk 0:00:35]} 27. Qc1 {[%clk 0:01:06]}  b5 {[%clk 0:00:33]} 28. Be4 {[%clk 0:00:46]}  bxc4 {[%clk 0:00:31]} 29. Kf3 {[%clk 0:00:46]}  c3 {[%clk 0:00:29]} 30. Qc2 {[%clk 0:00:45]}  Qc4 {[%clk 0:00:20]} 31. Bxh7+ {[%clk 0:00:41]}  Kg7 {[%clk 0:00:20]} 32. Bd3 {[%clk 0:00:42]}  Qd5+ {[%clk 0:00:18]} 33. Be4 {[%clk 0:00:38]}  Qc4 {[%clk 0:00:17]} 34. Kg2 {[%clk 0:00:38]}  Qc5 {[%clk 0:00:15]} 35. Qd3 {[%clk 0:00:34]}  c2 {[%clk 0:00:15]} 36. Qxc2 {[%clk 0:00:33]}  Qxe3 {[%clk 0:00:15]} 37. Bf3 {[%clk 0:00:30]}  c5 {[%clk 0:00:15]} 38. Qe2 {[%clk 0:00:28]}  Qd4 {[%clk 0:00:13]} 39. Bg1 {[%clk 0:00:29]}  Qf4 {[%clk 0:00:12]} 40. Bxc5 {[%clk 0:00:28]}  Qg3+ {[%clk 0:00:12]} 41. Kf1 {[%clk 0:00:29]}  Qh3+ {[%clk 0:00:11]} 42. Qg2 {[%clk 0:00:29]}  Qxg2+ {[%clk 0:00:10]} 43. Kxg2 {[%clk 0:00:30]}  Be1 {[%clk 0:00:09]} 44. Be7 {[%clk 0:00:29]}  Bh4 {[%clk 0:00:10]} 45. Bf6+ {[%clk 0:00:29]}  Kg6 {[%clk 0:00:08]} 46. Be4+ {[%clk 0:00:28]}  Kh6 {[%clk 0:00:09]} 47. Kf3 {[%clk 0:00:28]}  Be1 {[%clk 0:00:08]} 48. Bc6 {[%clk 0:00:28]}  Bh4 {[%clk 0:00:08]} 49. Ke4 {[%clk 0:00:28]}  Kg6 {[%clk 0:00:08]} 50. Kd4 {[%clk 0:00:27]}  Bg3 {[%clk 0:00:08]} 51. Kc4 {[%clk 0:00:28]}  Bf4 {[%clk 0:00:08]} 52. Be4+ {[%clk 0:00:27]}  Kh6 {[%clk 0:00:08]} 53. Kb5 {[%clk 0:00:28]}  Bd2 {[%clk 0:00:07]} 54. Kc6 {[%clk 0:00:28]}  Bc3 {[%clk 0:00:06]} 55. Kd7 {[%clk 0:00:29]}  Bb4 {[%clk 0:00:06]} 56. Ke8 {[%clk 0:00:29]}  Bf8 {[%clk 0:00:05]} 57. Kxf7 {[%clk 0:00:28]}  Be7 {[%clk 0:00:03]} 58. Bg7# {[%clk 0:00:28]} 1-0


[Site "https://www.chess.com"]